{"text_format":"3","workbook":"xlsx","n_sheets":3,"sheets":["INR","Instructivo_INR","Hoja1"],"not_rendered":{"defined_names":3},"read":"whole","date_system":"1900"}

{"sheet":"INR","index":0,"n_rows":23,"n_cols":23,"rows_kept":23,"merged":[[0,0,0,22]]}
["Instituto Municipal de Planeación de Irapuato, Gto.\nIndicadores de Resultados\nDel 1 de enero al 31 de Diciembre del 2025"]
["Programa o proyecto de Inversión",{"$nulls":4},"Prespuesto del programa presupuestario",{"$nulls":4},"MIR",null,null,"Indicadores",{"$nulls":6},"Resultado del indicador"]
["Clasificación Programática acorde al CONAC\n","Clave del Programa presupuestario\n","Nombre del programa presupuestario\n","Clasificación funcional del gasto al que corresponde el programa presupuestario\n","Nombre de la dependencia o entidad que lo ejecuta\n","Aprobado\n","Modificado","Devengado\n","Ejercido\n","Pagado\n","Cuenta con MIR\n(SI/NO)\n","Nivel de la MIR del programa","Descripción del resumen narrativo (FIN, Propósito, componentes y actividades)","Nombre del Indicador\n","Nivel de la MIR, al que corresponde el indicador\n","Fórmula de cálculo\n","Descripción de variables de la fórmula","Meta del indicador Programada\n","Meta del indicador Modificada\n","Meta del indicador alcanzada\n","Valor del numerador de la formula ","Valor del denominador de la formula","Unidad de medida de las variables del indicador"]
[1,2,3,4,5,6,7,8,9,10,11,12,13,14,15,16,17,18,19,20,21,22,23]
["P.",null,null,132,"PLANEACION IRAPUATO",{"$f":"SUM(F12:F23)","v":{"v":28340941.560000002,"d":"28,340,941.56"}},{"$f":"SUM(G12:G23)","v":{"v":33609645.48,"d":"33,609,645.48"}},{"$f":"SUM(H12:H23)","v":{"v":30311331.480000004,"d":"30,311,331.48"}},{"v":1352104.02,"d":"1,352,104.02"},{"v":23430418.86,"d":"23,430,418.86"},"si","PGR","PLANEACION INCLUYENTE, PARTICIPACION CIUDADANA",{"$nulls":4},{"v":1,"d":"100%"},{"v":1,"d":"100%"},{"$f":"+H5/G5","v":{"v":0.9018640645298472,"d":"90%"}},{"$f":"+H5","v":{"v":30311331.480000004,"d":"30,311,331.48"}},{"$f":"+G5","v":{"v":33609645.48,"d":"33,609,645.48"}},"%"]
["P.",null,null,132,"PLANEACION IRAPUATO",{"$f":"+F5","v":{"v":28340941.560000002,"d":"28,340,941.56"}},{"$f":"+G5","v":{"v":33609645.48,"d":"33,609,645.48"}},{"$f":"+H5","v":{"v":30311331.480000004,"d":"30,311,331.48"}},{"v":1352104.02,"d":"1,352,104.02"},{"v":23430418.86,"d":"23,430,418.86"},"si","fin","Contribuir  a superar los estándares de sustentabilidad del municipio mediante la  adecuada operación, administración e implementación ","Indice de Competitividad urbana (IMCO), entre las ciudades mayores a 500 mil habitantes a 1 millon de habitantes","PGR","Puntos ≥","≥ al puntaje 46.39 del Índice de Competitividad urbana (IMCO), entre las ciudades mayores a 500 mil habitantes a 1 millón de habitantes    ",46.39,{"v":1,"d":"100%"},{"$f":"+H6/G6","v":{"v":0.9018640645298472,"d":"90%"}},{"$f":"+H6","v":{"v":30311331.480000004,"d":"30,311,331.48"}},{"$f":"+G6","v":{"v":33609645.48,"d":"33,609,645.48"}},"%"]
["P.",null,null,132,"PLANEACION IRAPUATO",{"$f":"+F23","v":{"v":9808848.1,"d":"9,808,848.10"}},{"$f":"+G23","v":{"v":9808848.1,"d":"9,808,848.10"}},{"$f":"+H23","v":{"v":8356007.77,"d":"8,356,007.77"}},{"v":211297.89,"d":"211,297.89"},{"v":8144709.88,"d":"8,144,709.88"},"si","Proposito","Sistema de Planeación del Municipio de Irapuato opera, se administra y se implementa satisfactoriamente. ","Porcentaje de cumplimiento  de la operación, administración e implementación del Sistema Municipal de Planeación","Proposito","Porcentaje","%OAI_SIMUPLAN=(IAI*0.50)+(IGAIM*0.50)\nDonde:\n%OAI_SIMUPLAN: Porcentaje de cumplimiento  de la operación, administración e implementación del Sistema Municipal de Planeación\n%AI: Porcentaje de aplicación de instrumentos de planeación municipal\n%GAIM: Porcentaje de Cumplimiento  de la Gestión Administrativa del IMPLAN ",{"v":1,"d":"100%"},{"v":1,"d":"100%"},{"v":0.8518847151889323,"d":"85%"},{"v":8356007.77,"d":"8,356,007.77"},{"v":9808848.1,"d":"9,808,848.10"},"%"]
["P.",null,null,132,"PLANEACION IRAPUATO",{"$f":"+F12+F13","v":{"v":16515915.46,"d":"16,515,915.46"}},{"$f":"+G12+G13","v":{"v":22585048.98,"d":"22,585,048.98"}},{"$f":"+H12+H13","v":{"v":20935083.44,"d":"20,935,083.44"}},{"v":1132587.1300000001,"d":"1,132,587.13"},{"v":14273687.709999999,"d":"14,273,687.71"},"si","Componente C5","Instrumentos de planeación municipal aplicados.","Porcentaje de aplicación de instrumentos de planeación municipal","Componente","porcentaje","%AI = (PBRalin / PBRtotal) *100\nDonde:\n%AI: Porcentaje de aplicación de instrumentos de planeación municipal\nPBRalin: PBRs de la Administración Pública Municipal alineados a los instrumentos de planeación\nPBRtotal: Total de PBRs de la Administración Pública Municipal ",{"v":1,"d":"100%"},{"v":1,"d":"100%"},{"v":0.9269443452851879,"d":"93%"},{"v":20935083.44,"d":"20,935,083.44"},{"v":22585048.98,"d":"22,585,048.98"},"%"]
["P.",null,null,132,"PLANEACION IRAPUATO",{"$f":"+F14+F15+F16","v":{"v":775451,"d":"775,451.00"}},{"$f":"+G14+G15+G16","v":{"v":441359.56,"d":"441,359.56"}},{"$f":"+H14+H15+H16","v":{"v":350655.83,"d":"350,655.83"}},{"$f":"+I14+I15+I16","v":{"v":2802,"d":"2,802.00"}},{"v":347853.83,"d":"347,853.83"},"si","Componente C6","Instrumentos de planeación municipal monitoreados y evaluados","Porcentaje de  Monitoreo  y Evaluación de los Instrumentos de Planeación Municipal","Componente","porcentaje","%IE=(NIe/NIp)*100\n%IE: Porcentaje de  Monitoreo  y Evaluación de los Instrumentos de Planeación Municipal\nNIe: Numero de indicadores monitoreados de los instrumento de planeación \nNIp: Número  total de indicadores publicados en los instrumentos de planeación ",{"v":0.3,"d":"30%"},{"v":0.3,"d":"30%"},{"v":0.7944901657958876,"d":"79%"},{"v":350655.83,"d":"350,655.83"},{"v":441359.56,"d":"441,359.56"},"%"]
["P.",null,null,132,"PLANEACION IRAPUATO",{"$f":"+F17+F18+F19","v":{"v":646200,"d":"646,200.00"}},{"$f":"+G17+G18+G19","v":{"v":401211,"d":"401,211.00"}},{"$f":"+H17+H18+H19","v":{"v":345975.59,"d":"345,975.59"}},{"v":2615,"d":"2,615.00"},{"v":343360.59,"d":"343,360.59"},"si","Componente C7","Ciudadanía y COPLADEMI en el Sistema Municipal de Planeación involucrados ","Porcentaje de participación social en el Proceso de Planeación","Componente","porcentaje","%PS=(EPS/EPP)*100\n%PS= Porcentaje de participación social en el Proceso de Planeación\nEPS= Etapas del Proceso de Planeación con Participación Social\nEPP=Etapas del Proceso de Planeación (Planeación, Programación, Monitoreo, Evaluación) ",{"v":0.5,"d":"50%"},{"v":0.5,"d":"50%"},{"v":0.8623282761439742,"d":"86%"},{"v":345975.59,"d":"345,975.59"},{"v":401211,"d":"401,211.00"},"%"]
["P.",null,null,132,"PLANEACION IRAPUATO",{"$f":"+F20+F21+F22","v":{"v":594527,"d":"594,527.00"}},{"$f":"+G20+G21+G22","v":{"v":373177.83999999997,"d":"373,177.84"}},{"$f":"+H20+H21+H22","v":{"v":323608.85,"d":"323,608.85"}},{"v":2802,"d":"2,802.00"},{"v":320806.85,"d":"320,806.85"},"si","Componente C8","Planeación organizacional del IMPLAN fortalecida.","Porcentaje de Cumplimiento  de la Gestión Administrativa del IMPLAN ","Componente","porcentaje","%GAIM=(IOI*0.50)+(ITRF*0.50)\n%GAIM= Porcentaje de Cumplimiento  de la Gestión Administrativa del IMPLAN \n%OI  = Porcentaje de Cumplimiento  de operación del IMPLAN\n%TRF = Porcentaje de cumplimiento de Transparencia y Recursos Financieros",{"v":1,"d":"100%"},{"v":1,"d":"100%"},{"v":0.8671705961961729,"d":"87%"},{"v":323608.85,"d":"323,608.85"},{"v":373177.83999999997,"d":"373,177.84"},"%"]
["P.","P00030501","Actualización de los Instrumentos de Planeación y Programas derivados",132,"PLANEACION IRAPUATO",{"v":16142508.46,"d":"16,142,508.46"},{"v":22418880.98,"d":"22,418,880.98"},{"v":20793778.71,"d":"20,793,778.71"},{"v":1114264.51,"d":"1,114,264.51"},{"v":14150705.6,"d":"14,150,705.60"},"si","Actividad",{"$f":"+C12","v":"Actualización de los Instrumentos de Planeación y Programas derivados"},"Porcentaje de instrumentos normativos actualizados","Actividad","porcentaje","%IPda = (IPda / IPn) *100\nDonde:\n%IPda: Porcentaje de Instrumentos de Planeación Normativos actualizados\nIPda: Número de Instrumentos de Planeación actualizados en el año 2023\nIP: Número de instrumentos de Planeación que requieren actualización",{"v":0.5,"d":"50%"},{"v":0.5,"d":"50%"},{"v":0.9275118918089729,"d":"93%"},{"v":20793778.71,"d":"20,793,778.71"},{"$f":"+G12","v":{"v":22418880.98,"d":"22,418,880.98"}},"%"]
["P.","P00030502","Fortalecimiento del Sistema de Información Estadística y Geográfica (SICAMI)",132,"PLANEACION IRAPUATO",{"v":373407,"d":"373,407.00"},{"v":166168,"d":"166,168.00"},{"v":141304.73,"d":"141,304.73"},{"v":18322.62,"d":"18,322.62"},{"v":122982.11,"d":"122,982.11"},"si","Actividad",{"$f":"+C13","v":"Fortalecimiento del Sistema de Información Estadística y Geográfica (SICAMI)"},"Porcentaje de Cumplimiento de procesos de asistencia técnica, monitoreo y capacitación relacionado con la infraestructura y software de SICAMI en las 23 dependencias y entidades, ","Actividad","porcentaje","Pat_SICAMI = (NoSICAMI2023 / NoSICAMI2023Prog)*100\nDonde:\nPat_SICAMI: Porcentaje de cumplimiento de  procesos de asistencia técnica, monitoreo y capacitación relacionado con la infraestructura y software de SICAMI en las 28 dependencias y entidades.\nNoSICAMI2023: Número de procesos realizados de asistencia técnica que ofrece el implan relacionado con SICAMI  en cada área de la Administración Publica Municipal\nNoSICAMI2023Prog: Número de procesos  programados de asistencia técnica que ofreció el implan relacionado con SICAMI  en cada área de la Administración Publica Municipal",{"v":1,"d":"100%"},{"v":1,"d":"100%"},{"v":0.8503726951037505,"d":"85%"},{"v":141304.73,"d":"141,304.73"},{"$f":"+G13","v":{"v":166168,"d":"166,168.00"}},"%"]
["P.","P00030601","Fortalecimiento a la evaluacion de los instrumentos de planeación con las dependencias y entidades municipales",132,"PLANEACION IRAPUATO",{"v":255899,"d":"255,899.00"},{"v":144477.16,"d":"144,477.16"},{"v":123918.05,"d":"123,918.05"},{"v":934,"d":"934.00"},{"v":122984.05,"d":"122,984.05"},"si","Actividad","Fortalecimiento a la evaluacion de los instrumentos de planeación con las dependencias y entidades municipales","Implementacion y Consolidacion Modulo Digital de Indicadores del Sistema de Planeacion Municipal","Actividad","porcentaje","%SI = (SI_REAL / SI_PROGRAMADO)*100\nDonde:\n%SI: Porcentaje de Cumplimiento de ña Implementación y Consolidación Módulo Digital de Indicadores del Sistema de Planeación Municipal\nSI_REAL:  Avance real  de consolidación del Modulo Digital de Indicadores \nSI_PROGRAMADO: Avance programado  de consolidación del Modulo Digital de Indicadores ",{"v":0.6,"d":"60%"},{"v":0.6,"d":"60%"},{"v":0.8576999298712682,"d":"86%"},{"v":123918.05,"d":"123,918.05"},{"v":144477.16,"d":"144,477.16"},"%"]
["P.","P00030602","Fortalecimiento al seguimiento de los Instrumentos de Planeación",132,"PLANEACION IRAPUATO",{"v":255897,"d":"255,897.00"},{"v":143453.4,"d":"143,453.40"},{"v":93700.55,"d":"93,700.55"},{"v":934,"d":"934.00"},{"v":92766.55,"d":"92,766.55"},"si","Actividad","Fortalecimiento al seguimiento de los Instrumentos de Planeación","Porcentaje de dictámenes y opiniones técnicas armonizados con los Instrumentos de Planeación","Actividad","Porcentaje","%DC_IP= (SAt/SR) *100\n%DC_IP= Porcentaje de dictámenes armonizados con Instrumentos de Planeación \nSAt= Solicitudes atendidas por el IMPLAN armonizados y congruentes con los instrumentos de planeación \nSR= Solicitudes recibidas. ",{"v":1,"d":"100%"},{"v":1,"d":"100%"},{"v":0.6531776172610758,"d":"65%"},{"v":93700.55,"d":"93,700.55"},{"v":143453.4,"d":"143,453.40"},"%"]
["P.","P00030603","Impulso a la participación ciudadana en procesos de monitoreo, evaluación y seguimiento de los instrumentos de planeación.",132,"PLANEACION IRAPUATO",{"v":263655,"d":"263,655.00"},{"v":153429,"d":"153,429.00"},{"v":133037.23,"d":"133,037.23"},{"v":934,"d":"934.00"},{"v":132103.23,"d":"132,103.23"},"si","Actividad","Impulso a la participación ciudadana en procesos de monitoreo, evaluación y seguimiento de los instrumentos de planeación.","Porcentaje de dictámenes y opiniones técnicas armonizados con los Instrumentos de Planeación","Actividad","Porcentaje","%PC = (AR/AP)*100\nDonde: \n%PC: Porcentaje de participación ciudadana en el proceso de planeación\nAR: Acciones realizadas para la participación ciudadana  en procesos de monitoreo, evaluación y seguimiento de los instrumentos de planeación. \nAP:  Acciones programadas para la participación ciudadana  en procesos de monitoreo, evaluación y seguimiento de los instrumentos de planeación, lo que representa 5 acciones. ",{"v":1,"d":"100%"},{"v":1,"d":"100%"},{"v":0.8670931179894285,"d":"87%"},{"v":133037.23,"d":"133,037.23"},{"v":153429,"d":"153,429.00"},"%"]
["P.","P00030701","Fortalecimiento a la participación  del COPLADEMI en los procesos de planeación y evaluación",132,"PLANEACION IRAPUATO",{"v":290790,"d":"290,790.00"},{"v":167844,"d":"167,844.00"},{"v":139314.41,"d":"139,314.41"},{"v":934,"d":"934.00"},{"v":138380.41,"d":"138,380.41"},"si","Actividad","Fortalecimiento a la participación  del COPLADEMI en los procesos de planeación y evaluación","Porcentaje de instrumentos de planeación validados por el COPLADEMI.","Actividad","porcentaje","P_IPVAL= (Número de instrumentos aprobados por el COPLADEMI en 2022  /número Instrumentos presentados ante el COPLADEMI en el año 2022)  *100",{"v":1,"d":"100%"},{"v":1,"d":"100%"},{"v":0.8300231762827388,"d":"83%"},{"v":139314.41,"d":"139,314.41"},{"v":167844,"d":"167,844.00"},"%"]
["P.","P00030702","Difusión del sistema de planeación para conocimiento de la ciudadanía",132,"PLANEACION IRAPUATO",{"v":226168,"d":"226,168.00"},{"v":145547,"d":"145,547.00"},{"v":128622.85,"d":"128,622.85"},{"v":934,"d":"934.00"},{"v":127688.85,"d":"127,688.85"},"si","Actividad","Difusión del sistema de planeación para conocimiento de la ciudadanía","Porcentaje de avance en la implementacion en la estrategia de difusion de los instrumentos de Planeacion","Actividad","porcentaje","% de implementación de estrategia de difusión = (avance de la implementación de la estrategia/ avance programado )  *100\nAP = (4 boletines anuales * 0.4) + (100% instrumentos publicados pagina web *0.3)+ (visitas pagina web anuales igual o mayor a 4000 *0.3)",{"v":1,"d":"100%"},{"v":1,"d":"100%"},{"v":0.8837203789841083,"d":"88%"},{"v":128622.85,"d":"128,622.85"},{"v":145547,"d":"145,547.00"},"%"]
["P.","P00030703","Vinculación del Sistema de Planeación con los Organismos Intermedios y las Instituciones Educativas.",132,"PLANEACION IRAPUATO",{"v":129242,"d":"129,242.00"},{"v":87820,"d":"87,820.00"},{"v":78038.33,"d":"78,038.33"},{"v":747,"d":"747.00"},{"v":77291.33,"d":"77,291.33"},"si","Actividad","Vinculación del Sistema de Planeación con los Organismos Intermedios y las Instituciones Educativas.","Porcentaje de avance en la implementacion en la estrategia de difusion de los instrumentos de Planeacion","Actividad","porcentaje","Vinc = (Vinc2023 realizadas / Vinc2023 Programadas)*100\nDonde:\nVinc: Porcentaje de cumplimiento de  acciones de vinculación de los instrumentos de planeación con los organismos intermedios y las instituciones educativas\nVinc2023 realizadas: Número de acciones de vinculación de los instrumentos de planeación con los organismos intermedios y las instituciones educativas llevadas a cabo en el presente año\nVinc2023 Programadas: Número de acciones de vinculación programadas de los instrumentos de planeación con los organismos intermedios y las instituciones educativas",{"v":1,"d":"100%"},{"v":1,"d":"100%"},{"v":0.8886168298792986,"d":"89%"},{"v":78038.33,"d":"78,038.33"},{"v":87820,"d":"87,820.00"},"%"]
["P.","P00030801","Fortalecimiento de la estructura y operación del IMPLAN ",132,"PLANEACION IRAPUATO",{"v":208082,"d":"208,082.00"},{"v":124523.84,"d":"124,523.84"},{"v":106390.2,"d":"106,390.20"},{"v":934,"d":"934.00"},{"v":105456.2,"d":"105,456.20"},"si","Actividad","Fortalecimiento de la estructura y operación del IMPLAN ","Índice de operación del IMPLAN","Actividad","Porcentaje de incremento","%OI (Porcentaje de Cumplimiento  de operación del IMPLAN) = ((CP * 0.5) + (RH * 0.5)) * 100\nCP= Cuenta Pública = (# informes cumplidos/# informes requeridos por normatividad)\nRH= Manejo de Recursos Humanos = (Gestión de Nómina*0.4)+(Gestión de incidencias*0.3)+(Gestión de asistencias*0.3)",{"v":1,"d":"100%"},{"v":1,"d":"100%"},{"v":0.8543761580111888,"d":"85%"},{"v":106390.2,"d":"106,390.20"},{"v":124523.84,"d":"124,523.84"},"%"]
["P.","P00030802","Capacitación del cuerpo técnico del IMPLAN para que sea multidisciplinario y  conocimientos de vanguardia",132,"PLANEACION IRAPUATO",{"v":208070,"d":"208,070.00"},{"v":139417,"d":"139,417.00"},{"v":123053.85,"d":"123,053.85"},{"v":934,"d":"934.00"},{"v":122119.85,"d":"122,119.85"},"si","Actividad","Capacitación del cuerpo técnico del IMPLAN para que sea multidisciplinario y  conocimientos de vanguardia","Porcentaje de capacitaciones recibidas por integrantes del Cuerpo tecnico del Instituto ","Actividad","Porcentaje de incremento","Porcentaje de capacitaciones recibidas = ( capacitaciones recibidas en el año 2023 /  capacitaciones programadas  en el año 2023 )  *100",{"v":1,"d":"100%"},{"v":1,"d":"100%"},{"v":0.8826316015980835,"d":"88%"},{"v":123053.85,"d":"123,053.85"},{"v":139417,"d":"139,417.00"},"%"]
["P.","P00030803","Seguimiento a obligaciones normativas en materia de Transparencia y Recursos Financieros",132,"PLANEACION IRAPUATO",{"v":178375,"d":"178,375.00"},{"v":109237,"d":"109,237.00"},{"v":94164.8,"d":"94,164.80"},{"v":934,"d":"934.00"},{"v":93230.8,"d":"93,230.80"},"si","Actividad","Seguimiento a obligaciones normativas en materia de Transparencia y Recursos Financieros","Porcentaje de capacitaciones recibidas por integrantes del Cuerpo tecnico del Instituto ","Actividad","Porcentaje de incremento","%TRF (Porcentaje de cumplimiento de Transparencia y Recursos Financieros) =  ((Transp*0.5) + (CSHCP*0.5)) * 100\nTransp= (Solicitudes atendidas de la Unidad de Transparencia/solicitudes recibidas de la Unidad de Transparencia)\nCSHCP = Declaraciones ante SHCP (# informes cumplidos/# informes requeridos por normatividad)",{"v":1,"d":"100%"},{"v":1,"d":"100%"},{"v":0.8620229409449179,"d":"86%"},{"v":94164.8,"d":"94,164.80"},{"v":109237,"d":"109,237.00"},"%"]
["P.",null,"SERVICIOS PERSONALES",132,"PLANEACION IRAPUATO",{"v":9808848.1,"d":"9,808,848.10"},{"v":9808848.1,"d":"9,808,848.10"},{"v":8356007.77,"d":"8,356,007.77"},{"v":211297.89,"d":"211,297.89"},{"v":8144709.88,"d":"8,144,709.88"},"si","Actividad","SERVICIOS PERSONALES",{"$f":"+N6","v":"Indice de Competitividad urbana (IMCO), entre las ciudades mayores a 500 mil habitantes a 1 millon de habitantes"},"Capitulo 1000","porcentaje",null,{"v":1,"d":"100%"},{"v":1,"d":"100%"},{"v":0.8518847151889323,"d":"85%"},{"v":8356007.77,"d":"8,356,007.77"},{"v":9808848.1,"d":"9,808,848.10"},"%"]

{"sheet":"Instructivo_INR","index":1,"n_rows":27,"n_cols":2,"rows_kept":27}
[null,"Recomendación:"]
[null,"En caso de no contar con la información señalada en cada campo indicar N/D (no Disponible) o N/A en el caso de que no aplique la información requerida. Nota: esta recomendación no aplica en las columnas 6 al 10 dado lo comentado en el punto 14. "]
[]
["Columna","Instructivo"]
[1,"Seleccionar la clasificación programática de acuerdo al CONAC, a la que se encuentra vinculada el programa presupuestario. Consultar clasificación disponible en: \nhttps://www.conac.gob.mx/work/models/CONAC/normatividad/NOR_01_02_004.pdf"]
[2,"Indicar la clave que se le asignó al programa presupuestario la cual debe iniciar con la letra que señale el acuerdo por el que se emite la clasificación programática del gasto emitido por el CONAC.  Consultar clasificación disponible en:\nhttps://www.conac.gob.mx/work/models/CONAC/normatividad/NOR_01_02_004.pdf"]
[3,"Indicar la denominación que se le haya otorgado al programa presupuestario. El nombre del programa presupuestario no debe ser el mismo que el de la Unidad Responsable."]
[4,"Seleccionar la clasificación funcional del gasto al que corresponde el programa presupuestario acorde al Acuerdo emitido por el CONAC, esto es: DESARROLLO SOCIAL, DESARROLLO ECONÓMICO, GOBIERNO, OTROS. Consultar clasificación disponible en:\nhttps://www.conac.gob.mx/work/models/CONAC/normatividad/NOR_01_02_003.pdf"]
[5,"Señalar el nombre completo de la o las dependencias o entidades que ejecutan el programa presupuestario."]
[6,"Indicar el importe del presupuesto aprobado para el programa presupuestario.\nNota: en caso de contar con datos del presupuesto aprobado a nivel actividad de la MIR del programa, indicar el importe en cada una; la suma del importe de todas las actividades debe corresponder con el valor señalado al importe aprobado del componente asociado, asimismo, la suma total del importe de los componentes debe corresponder con el importe indicado en la fila del PROPOSITO y finalmente, éste debe ser el mismo que el importe del nivel FIN."]
[7,"Indicar el importe del presupuesto modificado para el programa presupuestario a la fecha en que se reporta.\nNota: en caso de contar con datos del presupuesto modificado a nivel actividad de la MIR del programa, indicar el importe en cada una; la suma del importe de todas las actividades debe corresponder con el valor señalado al importe del componente asociado, asimismo, la suma total del importe de los componentes debe corresponder con el importe indicado en la fila del PROPOSITO y finalmente, éste debe ser el mismo que el importe del nivel FIN."]
[8,"Indicar el importe del presupuesto devengado para el programa presupuestario a la fecha en que se reporta.\nNota: en caso de contar con datos del presupuesto devengado a nivel actividad de la MIR del programa, indicar el importe en cada una; la suma del importe de todas las actividades debe corresponder con el valor señalado al importe del componente asociado, asimismo, la suma total del importe de los componentes debe corresponder con el importe indicado en la fila del PROPOSITO y finalmente, éste debe ser el mismo que el importe del nivel FIN."]
[9,"Indicar el importe del presupuesto ejercido para el programa presupuestario a la fecha en que se reporta.\nNota: en caso de contar con datos del presupuesto ejercido a nivel actividad de la MIR del programa, indicar el importe en cada una; la suma del importe de todas las actividades debe corresponder con el valor señalado al importe del componente asociado, asimismo, la suma total del importe de los componentes debe corresponder con el importe indicado en la fila del PROPOSITO y finalmente, éste debe ser el mismo que el importe del nivel FIN."]
[10,"Indicar el importe del presupuesto pagado para el programa presupuestario a la fecha en que se reporta.\nNota: en caso de contar con datos del presupuesto pagado a nivel actividad de la MIR del programa, indicar el importe en cada una; la suma del importe de todas las actividades debe corresponder con el valor señalado al importe del componente asociado, asimismo, la suma total del importe de los componentes debe corresponder con el importe indicado en la fila del PROPOSITO y finalmente, éste debe ser el mismo que el importe del nivel FIN."]
[11,"Indicar si para el programa presupuestario se elaboró su Matriz de Indicadores para Resultados, (MIR)."]
[12,"Seleccionar el nivel de la MIR del programa presupuestario a describir FIN, PROPÓSITO, COMPONENTE O ACTIVIDAD."]
[13,"Descripción del FIN, PROPÓSITO, COMPONENTES Y ACTIVIDADES de la MIR del Programa Presupuestario"]
[14,"Descripción del nombre asignado al indicador, ejemplo: \"Índice de marginación en Guanajuato\", en caso de no contar con información del indicador se deberán atender las recomendaciones del instructivo. Nota: por cada indicador deberán rellenarse los datos de las columnas 1 a 5 y de la 11 a 13, excepto las columnas 6 a la 10, debido a que en éstas se deberá indicar únicamente los importes del FIN, PROPOSITO, COMPONENTES Y ACTIVIDADES."]
[15,"Indicar si el indicador corresponde al nivel de FIN, PROPÓSITO, COMPONENTE O ACTIVIDAD  de la MIR"]
[16,"Se refiere a la expresión matemática del indicador. Determina la forma en que se relacionan las variables."]
[17,"Describir el significado de las variables de la fórmula del indicador"]
[18,"Señalar la meta aprobada del indicador para el ejercicio en que se reporta."]
[19,"Señalar la meta modificada del indicador para el periodo en que se reporta."]
[20,"Señalar la meta alcanzada del indicador para el periodo en que se reporta."]
[21,"Indicar la cantidad que se obtuvo al periodo que se reporta respecto al numerador de la fórmula del indicador "]
[22,"Indicar la cantidad que se obtuvo al periodo que se reporta respecto al denominador de la fórmula del indicador "]
[23,"Indicar la unidad de medida que tienen las variables del indicador, (alumnos, profesores, áreas naturales protegidas, áreas reforestadas)."]

{"sheet":"Hoja1","index":2,"n_rows":23,"n_cols":3,"rows_kept":23,"hidden":true}
["S Sujetos a Reglas de Operación","Desarrollo Social","FIN"]
["U Otros Subsidios","Desarrollo Económico","PROPÓSITO"]
["E Prestación de Servicios Públicos","Gobierno y Finanzas","COMPONENTE"]
["B Provisión de Bienes Públicos","Otros","ACTIVIDAD"]
["P Planeación, seguimiento y evaluación de políticas públicas"]
["F Promoción y fomento"]
["G Regulación y supervisión"]
["A Funciones de las Fuerzas Armadas (Únicamente Gobierno Federal)"]
["R Específicos"]
["K Proyectos de Inversión"]
["M Apoyo al proceso presupuestario y para mejorar la eficiencia institucional"]
["O Apoyo a la función pública y al mejoramiento de la gestión"]
["W Operaciones ajenas"]
["L Obligaciones de cumplimiento de resolución jurisdiccional"]
["N Desastres Naturales"]
["J Pensiones y jubilaciones"]
["T Aportaciones a la seguridad social"]
["Y Aportaciones a fondos de estabilización"]
["Z Aportaciones a fondos de inversión y reestructura de pensiones"]
["I Gasto Federalizado"]
["C Participaciones a entidades federativas y municipios"]
["D Costo financiero, deuda o apoyos a deudores y ahorradores de la banca"]
["H Adeudos de ejercicios fiscales anteriores"]